Cogmind - Beta 9.5 @@@ ROGUE MODE // 2020.04.01 @ 10:56:43 // AFD2020/Player2 Player: Demise Result: Destroyed by G-34 Mercenary with Small Laser Performance ------------- Evolutions (0) 0 Regions Visited (4) 800 Robots Destroyed (15) 75 Value Destroyed (115) 115 Prototype IDs (22) 440 Alien Tech Used (0) 0 Bonus (294) 294 TOTAL SCORE: 1724 Bonus ------- Follower Combat Kills 201 Aligned with FarCom 300 Friendly Fire -207 Cogmind --------- Core Integrity 0/250 Matter 279/300 Energy 250/250 System Corruption 5% Temperature Cool (6) Movement Walking (150) Ox1 Location -9/Mines Parts ------- > --- POWER (1) -------- Ion Engine > --- PROPULSION (2) --- Aluminum Leg Aluminum Leg > --- UTILITY (2) ------ Large Storage Unit Seismic Analyzer > --- WEAPON (2) ------- Beam Cannon Rocket Launcher > --- INVENTORY (10) --- Large Matter Pod (150) High-capacity Matter Pod (102) Sensor Array Signal Interpreter Improved Terrain Scanner Field Lobotomy Kit Mining Laser Peak State ------------ > --- POWER ------------ Ion Engine > --- PROPULSION ------- Aluminum Leg Aluminum Leg > --- UTILITY ---------- Large Storage Unit Seismic Analyzer > --- WEAPON ----------- Beam Cannon Rocket Launcher > --- INVENTORY -------- Large Matter Pod High-capacity Matter Pod Sensor Array Signal Interpreter Improved Terrain Scanner Field Lobotomy Kit Mining Laser [Rating: 9] Favorites ----------- Power Ion Engine Engine Ion Engine Propulsion Aluminum Leg Leg Aluminum Leg Wheel Compact Wheel Utility Seismic Analyzer Storage Small Storage Unit Processor Seismic Analyzer Weapon Assault Rifle Energy Gun Small Laser Energy Cannon Beam Cannon Ballistic Gun Assault Rifle Launcher Rocket Launcher Build | -11 -10 -10 -10 -9 ------- Run | Scr Mat Min Exi Min Slots Evolved . | . . . . . Power . | . . . . . Propulsion . | . . . . . Utility . | . . . . . Weapon . | . . . . . Parts Attached 26 | 10 2 12 1 1 Power 5 | 2 1 2 . . Engine 5 | 2 1 2 . . Core . | . . . . . Reactor . | . . . . . Propulsion 9 | 2 1 6 . . Treads . | . . . . . Leg 4 | . . 4 . . Wheel 5 | 2 1 2 . . Hover . | . . . . . Flight . | . . . . . Utility 6 | 3 . 2 1 . Device . | . . . . . Storage 3 | 1 . 1 1 . Processor 3 | 2 . 1 . . Hackware . | . . . . . Protection . | . . . . . Artifact . | . . . . . Weapon 6 | 3 . 2 . 1 Energy Gun 2 | 1 . 1 . . Energy Cannon 1 | . . 1 . . Ballistic Gun 2 | 2 . . . . Ballistic Cannon . | . . . . . Launcher 1 | . . . . 1 Special Weapon . | . . . . . Impact Weapon . | . . . . . Slashing Weapon . | . . . . . Piercing Weapon . | . . . . . Special Melee Weapon . | . . . . . Unidentified Prototypes . | . . . . . Parts Lost 3 | . . 3 . . Power . | . . . . . Propulsion 1 | . . 1 . . Utility . | . . . . . Weapon 2 | . . 2 . . Highest Loss Streak 3 | . . 3 . . Average Slot Usage (%) 89 | . 100 88 85 90 Engine 14 | . 14 14 14 14 Leg 14 | . . 10 28 28 Wheel 13 | . 28 17 . . Storage 14 | . 14 14 14 14 Processor 14 | . 14 14 14 14 Energy Cannon 5 | . . . 14 14 Ballistic Gun 11 | . 28 14 . . Naked Turns . | . . . . . Heaviest Build 28 | 13 13 12 24 28 Greatest Support 32 | 32 32 26 20 20 Greatest Overweight (x) 1 | . . . 1 1 Average Overweight (x) . | . . . . 1 Largest Inventory Capacity 10 | 6 6 6 10 10 Average Capacity 6 | 5 6 6 8 10 Most Carried 8 | 6 6 6 8 8 Average Carried 5 | 5 4 5 6 7 Final Capacity 10 | 6 6 6 10 10 Final Carried 8 | 6 6 6 8 7 Class Distribution -------------------- 45% | Mutant 37% | Derelict-Mutant 16% | Scavenger-Mutant Dominant Class ---------------- Mutant | -10/Materials Scavenger-Mutant | -10/Mines Derelict-Mutant | -10/Exiles Derelict-Mutant | -9/Mines Resources | -11 -10 -10 -10 -9 ----------- Run | Scr Mat Min Exi Min Matter Collected 985 | 420 200 267 98 . Remotely . | . . . . . Salvage Created 345 | 209 87 49 . . Parts 27 | 17 9 1 . . Haulers Intercepted 1 | . 1 . . . Recyclers Shooed 1 | 1 . . . . Parts Field Recycled . | . . . . . Retrieved Matter . | . . . . . Parts Self-Destructed . | . . . . . Prevented . | . . . . . Kills | -11 -10 -10 -10 -9 ------- Run | Scr Mat Min Exi Min Combat Hostiles Destroyed 5 | . 2 3 . . Guns 5 | . 2 3 . . Classes Destroyed 8 | 3 3 2 . . Worker 2 | 2 . . . . Tunneler 5 | 5 . . . . Hauler 1 | . 1 . . . Recycler 1 | 1 . . . . Watcher 1 | . 1 . . . Swarmer 2 | . 2 . . . Grunt 1 | . . 1 . . Assembled 2 | . . 2 . . Best Kill Streak 5 | 5 2 1 . . Combat Bots Only 2 | . 2 1 . . Max Kills in Single Turn 1 | 1 1 1 . . Gunslinging . | . . . . . Exploded . | . . . . . Melee . | . . . . . Uniques/NPCs Destroyed . | . . . . . Combat | -11 -10 -10 -10 -9 -------- Run | Scr Mat Min Exi Min Damage Taken 633 | . 246 375 . 12 Core 164 | . 64 88 . 12 Absorbed by Shields . | . . . . . Core Remaining (%) 100 | 100 . . . . Volleys Fired 61 | 20 22 18 . 1 Largest 2 | 2 2 2 . 1 Hottest 60 | 40 40 60 . 33 Shots Fired 119 | 40 44 33 1 1 Gun 117 | 40 44 33 . . Cannon 1 | . . . 1 . Launcher 1 | . . . . 1 Special . | . . . . . Kinetic 116 | 40 44 32 . . Thermal 2 | . . 1 1 . Explosive 1 | . . . . 1 Electromagnetic . | . . . . . Robot Hit Streak 7 | 7 5 5 2 . Robot Miss Streak 8 | 2 8 5 . . Penetration Max . | . . . . . Secondary Targets 2 | . 2 . . . Max Gunslinging Chain 1 | . 1 . . . Shots Hit Robots 57 | 22 20 14 1 . Core Hits 29 | 9 6 13 . 1 Critical Hits . | . . . . . Critical Kills . | . . . . . Critical Parts Destroyed . | . . . . . Melee Attacks . | . . . . . Impact . | . . . . . Slashing . | . . . . . Piercing . | . . . . . Sneak Attacks . | . . . . . Combat Hostiles . | . . . . . Follow-up Attacks . | . . . . . Damage Inflicted 879 | 272 298 214 18 77 Guns 765 | 272 298 195 . . Cannons 18 | . . . 18 . Explosions 77 | . . . . 77 Melee . | . . . . . Ramming 19 | . . 19 . . Kinetic 765 | 272 298 195 . . Thermal 18 | . . . 18 . Explosive 77 | . . . . 77 Electromagnetic . | . . . . . Impact . | . . . . . Slashing . | . . . . . Piercing . | . . . . . Highest Corruption 5 | . . 5 5 5 Average Corruption 5 | . . 5 5 5 Corruption Purged . | . . . . . Effects 27 | . . 9 16 2 Message Errors 9 | . . 3 5 1 Matter Fused 7 | . . 2 5 . Energy Discharges 5 | . . 2 3 . Data Loss (minor) 3 | . . 2 . 1 Data Loss (major) 2 | . . . 2 . Misfires 1 | . . . 1 . Overload Shots . | . . . . . Overflow Damage . | . . . . . Projectiles . | . . . . . Explosions . | . . . . . Melee . | . . . . . Knockbacks . | . . . . . Impact . | . . . . . Kinetic . | . . . . . Secondary . | . . . . . Self-Inflicted Damage 5 | . . 5 . . Shots . | . . . . . Rammed 4 | . . 4 . . Targets Rammed 9 | . . 9 . . Kicked 5 | . . 5 . . Crushed . | . . . . . Highest Temperature 22 | 6 8 13 22 . Average Temperature 6 | 6 3 8 12 . Received Heat Transfer 217 | . 87 124 . 6 Siege Activations . | . . . . . Robots Corrupted . | . . . . . Combat Hostiles . | . . . . . Parts Fried . | . . . . . Impact Corruptions . | . . . . . Robots Melted . | . . . . . Combat Hostiles . | . . . . . Parts Melted . | . . . . . Heat Transferred 9 | . . . 9 . Parts Sabotaged . | . . . . . Parts Stolen . | . . . . . Parts Stripped . | . . . . . Power Chain Reactions . | . . . . . Missiles Intercepted . | . . . . . Alert | -11 -10 -10 -10 -9 ------- Run | Scr Mat Min Exi Min Peak Influence 269 | 40 269 198 . . Average Influence 109 | 16 136 121 . . Maximum Alert Level 1 | . 1 . . . Low Security (%) 85 | 100 53 100 . 100 Level 1 14 | . 46 . . . Level 2 . | . . . . . Level 3 . | . . . . . Level 4 . | . . . . . Level 5 . | . . . . . High Security . | . . . . . Max Security . | . . . . . Squads Dispatched . | . . . . . Investigation . | . . . . . Extermination . | . . . . . Reinforcement . | . . . . . Assault . | . . . . . Garrison . | . . . . . Intercept . | . . . . . Construction Impeded . | . . . . . Haulers Reinforced . | . . . . . Stealth | -11 -10 -10 -10 -9 --------- Run | Scr Mat Min Exi Min Distress Signals 1 | . 1 . . . Communications Jammed . | . . . . . Distress Signals . | . . . . . Times Spotted 20 | . 10 8 . 2 Peak Tracking Total 7 | . 7 2 . . Tactical Retreats . | . . . . . Traps | -11 -10 -10 -10 -9 ------- Run | Scr Mat Min Exi Min Traps Triggered . | . . . . . Indirectly . | . . . . . Trap Hack Attempts . | . . . . . Triggered . | . . . . . Disarmed . | . . . . . Reprogrammed . | . . . . . Reused . | . . . . . Traps Extracted . | . . . . . Installed . | . . . . . Triggered . | . . . . . Machines | -11 -10 -10 -10 -9 ---------- Run | Scr Mat Min Exi Min Machines Disabled . | . . . . . Max in Single Turn . | . . . . . Machines Sabotaged . | . . . . . Garrisons Compromised . | . . . . . Overloaded Fab Kills . | . . . . . Fab Network Shutdowns . | . . . . . Hacking | -11 -10 -10 -10 -9 --------- Run | Scr Mat Min Exi Min Machines Accessed 6 | . 4 . 2 . Terminals 3 | . 3 . . . Fabricators . | . . . . . Repair Stations . | . . . . . Recycling Units 1 | . 1 . . . Scanalyzers . | . . . . . Garrison Access . | . . . . . Total Hacks 13 | . 11 . 2 . Successful 11 | . 9 . 2 . Failed 2 | . 2 . . . Catastrophic . | . . . . . Database Lockouts . | . . . . . Manual 8 | . 7 . 1 . Terminals 9 | . 9 . . . Fabricators . | . . . . . Repair Stations . | . . . . . Recycling Units 2 | . 2 . . . Scanalyzers . | . . . . . Garrison Access . | . . . . . Terminal Hacks 5 | . 3 . 2 . Record 1 | . . . 1 . Part Schematic 1 | . 1 . . . Branch Access Points 1 | . 1 . . . Locate Traps 1 | . 1 . . . EX-Prototype ID Bank 1 | . . . 1 . Fabricator Hacks . | . . . . . Repair Station Hacks . | . . . . . Recycling Unit Hacks 2 | . 2 . . . Report Inventory 1 | . 1 . . . Retrieve Components 1 | . 1 . . . Scanalyzer . | . . . . . Garrison Access Hacks . | . . . . . Unauthorized Hacks 9 | . 9 . . . Terminals 4 | . 4 . . . Track 1 | . 1 . . . Botnet 3 | . 3 . . . Fabricators . | . . . . . Repair Stations . | . . . . . Recycling Units . | . . . . . Scanalyzers . | . . . . . Garrison Access . | . . . . . Data Cores Recovered . | . . . . . Used . | . . . . . Hacking Detections 2 | . 2 . . . Full Trace Events 1 | . 1 . . . Feedback Events . | . . . . . Feedback Blocked . | . . . . . Robot Schematics Acquired . | . . . . . Robots Built . | . . . . . Matter . | . . . . . Time . | . . . . . Total Robot Build Rating . | . . . . . Part Schematics Acquired 1 | . 1 . . . Parts Built . | . . . . . Matter . | . . . . . Time . | . . . . . Total Part Build Rating . | . . . . . Parts Repaired . | . . . . . Time . | . . . . . Parts Recycled . | . . . . . Recycled Matter . | . . . . . Retrieved Matter . | . . . . . Retrieved Components 1 | . 1 . . . Parts Scanalyzed . | . . . . . Part Schematics Acquired . | . . . . . Parts Damaged . | . . . . . Bothacking | -11 -10 -10 -10 -9 ------------ Run | Scr Mat Min Exi Min Used RIF Installer . | . . . . . Robots Hacked . | . . . . . Non-combat . | . . . . . Combat . | . . . . . Robot Hacks Applied . | . . . . . Relay Couplers Released . | . . . . . Robots Rewired . | . . . . . Allies Hacked . | . . . . . Hacks Repelled . | . . . . . Allies | -11 -10 -10 -10 -9 -------- Run | Scr Mat Min Exi Min Total Allies 1 | . 1 . . . Largest Group 1 | . 1 1 1 1 Highest-Rated Group 61 | . 58 61 61 61 Highest-Rated Ally 61 | . 58 61 61 61 Total Orders . | . . . . . Ally Attacks 51 | . 26 24 . 1 Total Damage 888 | . 368 520 . . Kills 12 | . 7 5 . . Allies Corrupted . | . . . . . Allies Melted . | . . . . . Intel | -11 -10 -10 -10 -9 ------- Run | Scr Mat Min Exi Min Robot Analysis Total . | . . . . . Derelict Logs Recovered 2 | . . 2 . . Drone Launches . | . . . . . Drone Recoveries . | . . . . . Exploration | -11 -10 -10 -10 -9 ------------- Run | Scr Mat Min Exi Min Turns Passed 1788 | 158 376 611 612 31 Spaces Moved 1279 | 79 236 511 445 8 Core 14 | 14 . . . . Treads . | . . . . . Legs 606 | . . 153 445 8 Wheels 659 | 65 236 358 . . Hover . | . . . . . Flight . | . . . . . Fastest Speed 50 | 50 90 80 120 150 Average Speed 111 | 91 99 97 134 150 Slowest Speed 150 | 100 100 120 150 150 Overloaded Moves . | . . . . . Propulsion Burnouts . | . . . . . Robots Hopped . | . . . . . Cave-ins Triggered . | . . . . . Exploration Rate (%) 41 | 5 44 86 70 4 Regions Visited 4 Branch Regions 3 Pre-discovered Areas 2 | . . 1 1 . Known Exits Taken 1 | . 1 . . . Unknown Exits Taken 3 | 1 . 1 1 . Scrap Searched 1 | . . 1 . . Spaces Dug . | . . . . . Terrain Destroyed 15 | . . . . 15 Melee . | . . . . . Projectile . | . . . . . AOE 15 | . . . . 15 Actions | -11 -10 -10 -10 -9 --------- Run | Scr Mat Min Exi Min Total 1537 | 122 338 590 459 28 Wait 116 | . 63 28 7 18 Move 1275 | 78 235 510 444 8 Hop . | . . . . . Pick Up 24 | 11 7 2 4 . Fast Attach 9 | 5 . 4 . . Attach 4 | 3 . . . 1 Detach . | . . . . . Swap 13 | 2 2 8 1 . Drop 26 | 3 9 11 3 . Fire 61 | 20 22 18 . 1 Melee . | . . . . . Ram 1 | . . 1 . . Kick 8 | . . 8 . . Crush . | . . . . . Escape Stasis . | . . . . . Rewire . | . . . . . Trap . | . . . . . Miscellaneous . | . . . . . Route ------- -11/Scrapyard -10/Materials (discovered 2 exits: [*Mat] / *Min) -10/Mines (discovered 3 exits: [*Mat x2] / *Exi) -10/Exiles -9/Mines History --------- Turn | Location | Event 11 | -11/Scrapyard | Discovered new exit (range 16) 159 | -11/Scrapyard | Entered Materials 287 | -10/Materials | Identified exit to Mines 316 | -10/Materials | Build established: Mutant 492 | -10/Materials | Discovered new exit (range 15) 535 | -10/Materials | Entered Mines 535 | -10/Mines | Accompanied by 1 ally 536 | -10/Mines | Assembled infested the area 718 | -10/Mines | Learned location of Zion (-7) 903 | -10/Mines | Discovered new exit (range 12) 908 | -10/Mines | Learned Materials emergency access door positions 924 | -10/Mines | Lost 3 parts (1n2w) 951 | -10/Mines | Core integrity fell below 50% 960 | -10/Mines | Core integrity fell below 20% 979 | -10/Mines | Discovered new exit (range 5) 1006 | -10/Mines | Received a Rocket Launcher from a helpful Derelict 1139 | -10/Mines | Deemed a non-threat by the Exiles lab entrance 1139 | -10/Mines | Discovered new exit (range 5) 1146 | -10/Mines | Entered Exiles 1146 | -10/Exiles | Accompanied by 1 ally 1175 | -10/Exiles | Met 8R-AWN 1196 | -10/Exiles | Met EX-HEX 1229 | -10/Exiles | Met EX-BIN 1242 | -10/Exiles | Aligned with FarCom system 1244 | -10/Exiles | Given EX-Vault access code 1271 | -10/Exiles | Opened EX-Vault 1280 | -10/Exiles | Found Field Lobotomy Kit 1313 | -10/Exiles | Warned to stay clear of 0b10 Research branches 1376 | -10/Exiles | Met EX-DEC 1406 | -10/Exiles | Build established: Derelict-Mutant 1740 | -10/Exiles | Discovered new exit (range 14) 1758 | -10/Exiles | Left Exiles lab with Field Lobotomy Kit 1758 | -10/Exiles | Entered Mines 1758 | -9/Mines | Accompanied by 1 ally 1789 | -9/Mines | Destroyed by G-34 Mercenary with Small Laser Last Messages --------------- 01458_ System corrupted: FCS attempts to trigger Beam Cannon. 01458_ System corrupted: Beam Cannon misfires. Player 2: "In case you were wondering, some of my prized inventory items include Aluminum Leg and Lgt. Assault Rifle." 01492_ System corrupted: Matter fused (-5). 01543_ System corrupted: Matter fused (-8). 01547_ Acquired Signal Interpreter. 01630_ UVQR RWYDF65RFZ DX=JAA|PHJ0VNCH6GS% 3M 01651_ Extracted 98 matter. 01653_ Acquired Hcp. Matter Pod. 01659_ Player 2 removes Med. Storage Unit. 01659_ Player 2 attaches Med. Storage Unit. 01685_ System corrupted: Substantial component data lost. 01738_ System corrupted: Energy discharge (-80). 01740_ EXIT=FOUND LOCATION=UNKNOWN GOAL=ESCAPE 01758_ Receiving FarCom transmissions... 01765_ System corrupted: Component data lost. 01783_ JUANPZXXHI UX3LACOKP Map ----- +----------------------------------------------------+ | | | | | | | | | | | | | | | | | | | | | | | | | | | | | | | | | | | ?????????????????????????????????????????????????? | | ?????????????????????????????????????????????????? | | ????????????????????????????###??????????????????? | | ????????????????????####???# #####??????????????? | | ?????????YY????????## ### #??????????????? | | ???????????????????# ### ?????????? | | ???????????????????# g g ??????????? | | ????????????????????# @ #?????????????? | | ??????????????????????# @ #??g???????????????? | | ??????????????????????## #??????????????????? | | ???????????????????????## ##??????????????????? | | ????????????????????????## ##???????????????????? | | ?????????????????????????####????????????????????? | | ?????????????????????????????????????????????????? | | ?????????????????????????????????????????????????? | | ?????????????????????????????????????????????????? | | ?????????????????????????????????????????????????? | | ?????????????????????????????????????????????????? | | ?????????????????????????????????????????????????? | | ?????????????????????????????????????????????????? | | ?????????????????????????????????????????????????? | | ?????????????????????????????????????????????????? | | ?????????????????????????????????????????????????? | | ?????????????????????????????????????????????????? | | ?????????????????????????????????????????????????? | | ?????????????????????????????????????????????????? | | ?????????????????????????????????????????????????? | | ?????????????????????????????????????????????????? | | ?????????????????????????????????????????????????? | | ?????????????????????????????????????????????????? | | ?????????????????????????????????????????????????? | | ?????????????????????????????????????????????????? | | ?????????????????????????????????????????????????? | +----------------------------------------------------+ Best States ------------- Heat Dissipation 25 Energy Generation 10 Energy Capacity 250 Matter Stores 300 Matter Capacity 300 Sight Range 16 Terrain Scan Density 60 Evasion (%) 50 Item Schematics ----------------- Hcp. Storage Unit | -10/Materials | Hacked Robot Schematics ------------------ None Fabricated ------------ Nothing Alien Tech Used ----------------- None Achievements -------------- None Challenges ------------ None Game ------ Seed NetworkShockDisintegrator Manual? 0 Play Time 00:19:39 Cumulative 161.4 hours Start 2020.04.01 @ 10:37:30 End 2020.04.01 @ 10:56:43 Sessions 1 Manual Loads 0 Difficulty Rogue Special Mode AFD2020/Player2 Game No. 220 Rogue 209 Adventurer 11 Explorer 0 Win Type - Total 0 Types 0/0/0/0/0/0/0 Lore% 48 Gallery% 60 Achievement% 42 Wizard Run 0 Options --------- ASCII 0 Keyboard 1 Movement Numpad Keybinds 0 Fullscreen 1 Font 12/Terminus Map View 83x54 Tactical HUD 1 Map Filters NONE Filters NONE Steam 1 RUN: 1e834374-3b39-4c98-9e4b-3f2b1926c167